bitfinex/quotes_SOLUSD_20240727
["timestamp","ask_amount","ask_price","bid_price","bid_amount"]
[1722116902675,1.68341778,186.16,186.03,5.56400645]
[1722116903468,15.3013,186.17,186.04,0.95153682]
[1722116903858,15.3013,186.17,186.05,0.95112853]
[1722116904371,15.3013,186.17,186.04,20.0]
[1722116904578,15.3013,186.17,186.05,45.95114083]
[1722116904784,15.3013,186.17,186.06,20.0]
[1722116904965,15.3013,186.17,186.06,20.95106465]
[1722116905579,15.3013,186.17,186.07,45.0]
[1722116905783,15.3013,186.17,186.08,0.95083529]
[1722116906089,15.3013,186.17,186.06,20.0]
[1722116906387,15.3013,186.17,186.07,0.95117165]
[1722116906689,15.3013,186.17,186.08,0.95098839]
[1722116906874,15.3013,186.17,186.05,0.95093124]
[1722116907184,15.3013,186.17,186.05,45.95093124]
[1722116907395,1.51327275,186.16,186.06,20.0]
[1722116907563,1.51327275,186.16,186.02,24.79544124]
[1722116907885,0.17,186.16,186.03,1.29136109]
[1722116908393,15.3013,186.17,186.03,1.29136109]
[1722116908886,15.3013,186.17,186.03,66.29136109]
[1722116913492,6.6102,186.16,186.03,66.29136109]
[1722116915471,15.0492,186.15,186.03,66.29136109]
[1722116915790,15.0492,186.15,186.03,65.34]
[1722116916087,15.0492,186.15,186.04,0.95133164]
[1722116916289,15.0492,186.15,186.05,0.9511719]
[1722116917066,15.0492,186.13,186.05,0.9511719]
[1722116917289,21.6594,186.13,186.03,45.17]
[1722116918170,21.6594,186.1,186.03,45.17]
[1722116918475,21.6594,186.1,186.03,45.0]
[1722116923902,15.0492,186.1,186.03,45.0]
[1722116925086,14.6792,186.1,186.03,45.0]
[1722116925506,14.6792,186.1,186.04,0.95149916]
[1722116925798,14.6792,186.1,186.05,0.95137644]
[1722116927103,6.6102,186.15,186.05,0.95137644]
[1722116928292,21.6594,186.15,186.05,0.95137644]
[1722116929590,21.6594,186.15,186.05,45.95137644]
[1722116930583,21.6594,186.15,186.06,20.0]
[1722116930887,21.6594,186.15,186.07,46.29080479]
[1722116931906,15.0492,186.15,186.07,46.29080479]
[1722116932109,6.1637,186.19,186.07,46.29080479]
[1722116932311,6.1637,186.19,186.08,20.0]
[1722116932515,6.1637,186.19,186.09,46.2903546]
[1722116933485,1.34288058,186.18,186.04,0.95018382]
[1722116933787,4.2973,186.16,186.02,15.6047]
[1722116934096,17.85100402,186.17,186.02,15.6047]
[1722116934097,22.14814935,186.17,186.02,16.55624889]
[1722116934294,17.85104935,186.17,186.02,16.55624889]
[1722116934806,0.34,186.16,186.02,16.55624889]
[1722116935289,0.34,186.16,186.03,45.0]
[1722116935491,0.34,186.16,186.04,0.95153032]
[1722116936006,0.34,186.16,186.05,0.95153221]
[1722116937498,16.5076,186.17,186.05,0.95153221]
[1722116937895,16.5076,186.17,186.06,0.17]
[1722116938098,16.5076,186.17,186.06,21.12085122]
[1722116938305,16.5076,186.17,186.07,45.0]
[1722116938489,16.5076,186.17,186.08,0.95081953]
[1722116939114,16.5076,186.17,186.08,20.95081953]
[1722116940710,16.5076,186.17,186.08,20.0]
[1722116940905,16.5076,186.17,186.09,45.0]
[1722116941209,16.5076,186.17,186.08,20.0]
[1722116942519,1.34312473,186.16,186.08,20.0]
[1722116942694,16.5076,186.17,186.08,20.0]
[1722116942892,1.34312653,186.16,186.08,20.0]
[1722116943690,6.1637,186.15,186.08,20.0]
[1722116943886,6.1637,186.15,186.02,22.12965282]
[1722116944902,6.1637,186.15,186.02,6.52495282]
[1722116945816,6.1637,186.15,186.03,20.0]
[1722116946007,17.85104854,186.14,186.03,20.0]
[1722116946596,17.85104854,186.14,186.04,45.0]
[1722116946794,17.85104854,186.14,186.05,20.0]
[1722116947017,16.5076,186.14,186.05,20.0]
[1722116947393,1.34344824,186.13,185.98,22.57]
[1722116947599,1.34344824,186.13,186.0,0.34]
[1722116951823,21.6473,186.12,186.0,0.34]
[1722116952010,1.34351698,186.11,186.0,0.34]
[1722116952210,1.34351694,186.1,186.0,0.34]
[1722116953103,15.1302,186.09,186.0,0.34]
[1722116953323,15.1302,186.09,186.0,0.17]
[1722116953521,1.34361562,186.08,185.99,70.58084236]
[1722116953703,1.34361562,186.08,185.99,65.0]
[1722116954499,1.34361562,186.08,185.99,64.5]
[1722116958104,6.5171,186.07,185.99,64.5]
[1722116963033,6.5171,186.07,185.99,45.0]
[1722116963234,15.1302,186.09,185.99,67.57]
[1722116963733,15.1302,186.09,185.99,74.1048925]
[1722116963938,15.1302,186.09,186.0,0.34]
[1722116965556,15.1302,186.09,186.0,20.34]
[1722116965715,15.1302,186.09,186.01,45.95185016]
[1722116966227,15.1302,186.09,186.01,45.0]
[1722116967115,15.1302,186.09,186.02,20.34]
[1722116967315,15.1302,186.09,186.03,45.0]
[1722116968127,15.1302,186.09,186.04,0.95149198]
[1722116968327,15.1302,186.09,186.03,45.0]
[1722116970430,6.5171,186.11,186.03,45.0]
[1722116971434,23.15111413,186.14,186.03,45.0]
[1722116971753,23.15111413,186.14,186.04,20.0]
[1722116972232,23.15111413,186.14,186.03,45.0]
[1722116972233,15.5449,186.12,186.03,45.0]
[1722116972438,16.88836541,186.12,186.03,45.0]
[1722116974541,16.88836541,186.12,185.99,5.58288768]
[1722116974713,16.88836541,186.12,186.0,65.0]
[1722116975625,15.5449,186.12,186.0,65.0]
[1722116980022,15.5449,186.12,186.01,0.17]
[1722116980221,15.5449,186.12,186.0,65.0]
[1722116980652,1.34362196,186.11,186.0,65.0]
[1722116980844,1.34362196,186.11,186.01,0.17]
[1722116981048,1.34362196,186.11,186.0,65.0]
[1722116982132,1.34363005,186.1,186.0,65.0]
[1722116984355,6.2627,186.09,186.0,20.0]
[1722116984661,16.88880413,186.08,185.96,0.8088155]
[1722116984851,1.34394005,186.07,185.96,0.8088155]
[1722116985240,15.5449,186.08,185.96,0.8088155]
[1722116985750,15.5449,186.08,185.96,21.76151065]
[1722116985949,16.88882696,186.08,185.96,20.8088155]
[1722116986749,16.88882696,186.08,185.97,45.0]
[1722116987139,16.88882696,186.08,185.95,5.58560629]
[1722116987140,37.9676,186.02,185.95,5.58560629]
[1722116987459,15.5449,185.98,185.84,1.76198088]
[1722116987636,1.34483375,185.97,185.84,0.8079]
[1722116987950,0.17,185.96,185.84,0.8079]
[1722116988342,1.34477623,185.96,185.84,0.8079]
[1722116988537,15.5449,185.98,185.85,0.95442334]
[1722116988740,15.5449,185.98,185.84,1.76232334]
[1722116989343,1.34456921,185.97,185.84,1.76232334]
[1722116989944,15.5449,185.98,185.84,1.76232334]
[1722116990432,15.5449,185.98,185.85,1.29401]
[1722116990643,16.88944482,185.98,185.85,1.29417801]
[1722116990833,16.88944482,185.98,185.86,0.95403385]
[1722116991034,16.88944482,185.98,185.87,0.34]
[1722116991563,15.5449,185.98,185.88,0.95383353]
[1722116991749,15.5449,185.98,185.89,0.34]
[1722116993141,15.5449,185.98,185.89,20.34]
[1722116993343,15.5449,185.98,185.9,45.0]
[1722116993557,15.5449,185.98,185.91,20.0]
[1722116993764,15.5449,185.98,185.92,45.0]
[1722116995439,15.5449,185.98,185.87,0.95343136]
[1722116995639,15.5449,185.98,185.88,0.17]
[1722116997268,1.34446375,185.97,185.88,0.17]
[1722116997461,1.34442243,185.97,185.84,20.8079]
[1722116997647,1.34442243,185.97,185.85,0.95404871]
[1722116997847,15.5449,185.98,185.86,0.95410399]
[1722116998053,15.5449,185.98,185.85,0.95415086]
[1722116998561,1.34445838,185.97,185.85,0.95397054]
[1722116998856,1.34445838,185.97,185.86,0.95400756]
[1722116999042,1.34445838,185.97,185.86,20.95400756]
[1722116999243,1.34445838,185.97,185.87,45.0]
[1722116999456,1.34445838,185.97,185.88,0.34]
[1722116999660,15.5449,185.98,185.88,0.34]
[1722117001860,15.5449,185.98,185.88,20.34]
[1722117002044,15.5449,185.98,185.89,45.0]
[1722117002647,7.40931599,185.97,185.89,45.0]
[1722117002856,7.40931599,185.97,185.84,0.8079]
[1722117003058,7.40931599,185.97,185.85,0.34]
[1722117004061,7.40931599,185.97,185.84,0.8079]
[1722117004465,6.0649,185.97,185.85,0.95438207]
[1722117005256,6.0649,185.97,185.86,0.95437177]
[1722117005567,6.0649,185.97,185.87,0.34]
[1722117006555,6.0649,185.97,185.88,0.95391752]
[1722117006753,6.0649,185.97,185.89,0.17]
[1722117006960,6.0649,185.97,185.87,1.2938249]
[1722117009659,6.0649,185.97,185.87,66.2938249]
[1722117013258,6.0649,185.97,185.87,82.4538249]
[1722117013458,15.5449,185.98,185.87,82.4538249]
[1722117014986,15.5449,185.98,185.89,38.73]
[1722117015289,15.5449,185.98,185.9,66.29310038]
[1722117015592,6.5843,186.01,185.9,82.45310038]
[1722117018463,6.5843,186.01,185.92,16.16]
[1722117018764,6.5843,186.01,185.93,66.29252342]
[1722117019084,6.5843,186.01,185.93,82.45252342]
[1722117019269,6.5843,186.01,185.93,66.29252342]
[1722117020477,6.5843,186.01,185.93,82.45252342]
[1722117020798,15.843,186.03,185.93,102.45252342]
[1722117020968,15.843,186.03,185.93,82.45252342]
[1722117021488,15.843,186.03,185.93,102.45252342]
[1722117021664,15.843,186.03,185.95,22.57]
[1722117021864,6.5843,186.06,185.96,66.29213052]
[1722117025484,6.5843,186.06,185.96,82.22423052]
[1722117025697,6.5843,186.06,185.96,98.38423052]
[1722117026378,15.843,186.07,185.98,22.57]
[1722117026562,15.843,186.07,185.99,66.29169528]
[1722117027582,6.5843,186.11,185.99,66.29169528]
[1722117028784,6.5843,186.11,186.0,16.16]
[1722117029091,22.4273,186.21,186.04,22.57]
[1722117029292,22.4273,186.21,186.05,66.29032581]
[1722117029991,22.4273,186.21,186.06,16.16]
[1722117030184,22.4273,186.21,186.07,66.2897087]
[1722117030380,22.4273,186.21,186.08,46.28964204]
[1722117030581,22.4273,186.21,186.09,20.0]
[1722117030787,22.4273,186.21,186.1,68.85954249]
[1722117030977,22.4273,186.21,186.11,20.94929268]
[1722117031288,22.4273,186.21,186.12,45.17]
[1722117031506,22.4273,186.21,186.13,1.1193283]
[1722117031795,22.4273,186.21,186.14,0.17]
[1722117031974,22.4273,186.21,186.14,1.11932907]
[1722117032169,22.4273,186.21,186.15,0.17]
[1722117032369,22.4273,186.21,186.15,1.11933011]
[1722117032876,22.4273,186.21,186.16,0.17]
[1722117033199,6.5843,186.21,186.16,0.17]
[1722117033379,6.5843,186.21,186.16,1.11912708]
[1722117033692,6.5843,186.21,186.17,0.17]
[1722117034071,6.5843,186.21,186.17,1.11902076]
[1722117034275,15.6869,186.25,186.18,0.17]
[1722117034503,15.6869,186.25,186.18,1.11867547]
[1722117034872,15.6869,186.25,186.19,0.17]
[1722117035194,15.6869,186.25,186.19,1.11858849]
[1722117035397,6.6295,186.27,186.2,0.17]
[1722117035615,6.6295,186.27,186.2,1.11841655]
[1722117035896,6.6295,186.27,186.21,0.17]
[1722117036190,6.6295,186.27,186.21,1.1183528]
[1722117036903,6.6295,186.27,186.22,0.17]
[1722117039308,15.6869,186.3,186.22,0.17]
[1722117039509,15.6869,186.3,186.22,1.11817798]
[1722117041503,13.1869,186.3,186.22,1.11817798]
[1722117042408,6.6295,186.32,186.22,1.11817798]
[1722117042784,6.6295,186.32,186.23,0.17]
[1722117043100,6.6295,186.32,186.23,1.11788694]
[1722117043503,6.6295,186.32,186.24,0.17]
[1722117043679,22.57,186.35,186.24,1.11778705]
[1722117043884,22.57,186.35,186.25,0.17]
[1722117044103,22.57,186.35,186.25,1.11753425]
[1722117045492,22.57,186.35,186.26,0.17]
[1722117045690,22.57,186.35,186.26,1.11742801]
[1722117046094,15.6869,186.36,186.26,1.11742801]
[1722117047314,6.6295,186.37,186.27,0.17]
[1722117047486,6.6295,186.37,186.27,45.17]
[1722117047799,6.6295,186.37,186.27,46.11724581]
[1722117048001,6.6295,186.37,186.28,0.17]
[1722117048311,6.6295,186.37,186.28,1.11680182]
[1722117048606,6.6295,186.37,186.29,0.17]
[1722117049508,38.2569,186.4,186.29,1.11682818]
[1722117049814,38.2569,186.4,186.3,0.17]
[1722117050121,38.2569,186.4,186.3,1.11650852]
[1722117050283,38.2569,186.4,186.31,0.17]
[1722117050491,38.2569,186.4,186.31,45.17]
[1722117050705,15.6869,186.4,186.31,45.17]
[1722117051012,15.6869,186.4,186.32,1.11648383]
[1722117051208,15.6869,186.4,186.31,45.17]
[1722117051722,15.6869,186.4,186.32,1.11648438]
[1722117051896,15.6869,186.4,186.32,0.17]
[1722117052515,6.6295,186.41,186.32,0.17]
[1722117053214,6.6295,186.41,186.32,1.11648597]
[1722117054493,6.6295,186.41,186.32,0.17]
[1722117054807,22.57,186.42,186.32,1.1164893]
[1722117055119,22.57,186.42,186.33,0.17]
[1722117055331,22.57,186.42,186.33,1.11608015]
[1722117055498,22.57,186.42,186.34,0.17]
[1722117055698,22.57,186.42,186.34,1.11607224]
[1722117056093,0.8088155,186.43,186.34,1.11607224]
[1722117056417,0.8088155,186.43,186.34,36.27237224]
[1722117056617,0.8088155,186.43,186.35,45.17]
[1722117056796,0.8088155,186.43,186.36,0.94572919]
[1722117056996,0.8088155,186.43,186.37,0.17]
[1722117057215,0.8088155,186.43,186.37,1.11572739]
[1722117057425,0.8088155,186.43,186.38,0.17]
[1722117058214,0.8088155,186.43,186.38,1.11549146]
[1722117058893,0.8088155,186.43,186.39,0.17]
[1722117059997,0.8088155,186.43,186.38,0.34]
[1722117060918,0.8088155,186.43,186.32,6.6389]
[1722117061127,0.8088155,186.43,186.32,7.58494453]
[1722117061420,0.8088155,186.43,186.32,7.58494778]
[1722117062126,0.8088155,186.43,186.3,2.16771976]
[1722117062302,1.3413362,186.42,186.29,15.1563]
[1722117063508,23.9113362,186.42,186.29,15.1563]
[1722117064413,28.2027362,186.42,186.29,15.1563]
[1722117064618,19.9995,186.41,186.29,15.1563]
[1722117064802,1.34158389,186.4,186.29,15.1563]
[1722117065232,15.7077,186.41,186.29,15.1563]
[1722117065406,15.7077,186.41,186.29,14.1563]
[1722117066725,19.9993,186.41,186.29,14.1563]
[1722117066932,15.7077,186.41,186.3,45.0]
[1722117067602,1.34158331,186.4,186.3,45.0]
[1722117067808,5.63373654,186.39,186.26,2.13470341]
[1722117068032,1.34163654,186.39,186.24,0.94707038]
[1722117068330,15.7077,186.41,186.26,0.9474342]
[1722117068528,15.7077,186.41,186.26,16.1037342]
[1722117069243,4.2918,186.4,186.26,16.1037342]
[1722117069411,5.63373774,186.39,186.27,45.34]
[1722117071413,10.9367,186.38,186.24,15.1128]
[1722117071633,1.34178935,186.37,186.25,20.0]
[1722117072411,1.34178935,186.37,186.24,15.1128]
[1722117073636,5.63428935,186.37,186.24,15.1128]
[1722117073825,39.0246,186.36,186.22,5.56605269]
[1722117074028,4.2934,186.34,186.2,260.7]
[1722117074331,30.8966587,186.33,186.19,15.1128]
[1722117074636,1.34224994,186.32,186.19,15.1128]
[1722117074942,16.4546,186.31,186.17,6.51648361]
[1722117075513,16.4546,186.31,186.18,20.0]
[1722117076128,1.34227626,186.3,186.18,20.0]
[1722117076841,1.34228248,186.29,186.19,45.0]
[1722117079843,16.4546,186.31,186.19,45.0]
[1722117080346,1.34227289,186.3,186.19,45.0]
[1722117080528,16.4546,186.31,186.19,45.0]
[1722117080926,1.34227265,186.3,186.19,45.0]
[1722117081146,1.34227265,186.29,186.19,45.0]
[1722117081748,16.4546,186.31,186.19,45.0]
[1722117081921,1.3422721,186.3,186.19,45.0]
[1722117082117,1.34227226,186.29,186.19,45.0]
[1722117083433,1.34227151,186.3,186.19,45.0]
[1722117083739,16.4546,186.31,186.2,0.34]
[1722117083925,1.34216426,186.3,186.2,0.34]
[1722117084126,16.4546,186.31,186.2,0.34]
[1722117084127,1.3421665,186.29,186.2,0.34]
[1722117085022,1.34216516,186.3,186.2,0.34]
[1722117085222,1.34216587,186.29,186.2,0.34]
[1722117085847,16.4546,186.31,186.2,0.34]
[1722117086039,1.34216295,186.3,186.2,0.34]
[1722117086345,1.34216544,186.29,186.2,0.34]
[1722117086740,16.4546,186.31,186.2,0.34]
[1722117087643,1.34216441,186.3,186.2,0.34]
[1722117087820,1.3421638,186.29,186.2,0.34]
[1722117088853,1.34216336,186.3,186.2,0.34]
[1722117089322,16.4546,186.31,186.2,0.34]
[1722117094259,1.34216076,186.3,186.2,0.17]
[1722117094464,1.34229772,186.29,186.19,45.0]
[1722117095957,6.6234,186.28,186.19,45.0]
[1722117096142,15.5818,186.27,186.18,20.0]
[1722117096454,1.34247863,186.26,186.17,5.56775087]
[1722117097443,1.34247863,186.26,186.12,3.28717905]
[1722117097843,1.34247863,186.26,186.12,2.2131898]
[1722117098056,1.34247863,186.26,186.11,26.64117028]
[1722117098645,1.34247863,186.26,186.11,5.56706386]
[1722117098849,1.34247863,186.26,186.12,45.0]
[1722117099048,6.6234,186.25,186.11,5.56706386]
[1722117099356,1.34273947,186.24,186.11,5.56706386]
[1722117099563,1.34272983,186.23,186.11,5.56706386]
[1722117100565,1.34272983,186.23,186.12,0.34]
[1722117101071,1.34272983,186.23,186.12,65.34]
[1722117105367,15.5818,186.22,186.12,65.34]
[1722117105555,6.6234,186.2,186.12,65.34]
[1722117105755,6.6234,186.2,186.12,45.34]
[1722117106372,6.6234,186.2,186.11,5.56706386]
[1722117106373,7.9661839,186.2,186.11,5.56706386]
[1722117106567,15.5818,186.19,186.11,5.56706386]
[1722117106866,1.34313593,186.18,186.11,5.56706386]
[1722117107047,1.34326627,186.17,186.03,22.57]
[1722117107247,1.34326627,186.17,186.03,28.13971521]
[1722117107464,1.34326627,186.17,186.03,30.3102821]
[1722117107856,1.34326627,186.17,186.04,20.0]
[1722117108357,1.34326627,186.17,186.05,0.34]
[1722117108547,1.34326627,186.17,186.05,45.34]
[1722117108749,1.34326627,186.17,186.06,20.0]
[1722117108951,1.34326627,186.17,186.07,45.0]
[1722117114457,1.34312183,186.18,186.08,0.34]
[1722117114665,1.34308608,186.17,186.08,0.34]
[1722117115770,1.34308697,186.16,186.08,0.34]
[1722117115972,1.34308709,186.18,186.08,0.34]
[1722117116165,1.34308723,186.17,186.08,0.34]
[1722117117269,1.34308565,186.18,186.08,0.34]
[1722117117571,1.34308746,186.18,186.08,0.34]
[1722117121288,15.5818,186.19,186.08,0.34]
[1722117122873,1.34298078,186.18,186.04,6.64630775]
[1722117123075,1.34316427,186.17,186.05,20.0]
[1722117123385,1.34316427,186.17,186.05,21.07453326]
[1722117123554,15.5818,186.19,186.05,21.07453326]
[1722117124159,7.92425557,186.18,186.05,21.07453326]
[1722117124372,1.34308803,186.17,186.06,45.34]
[1722117124881,1.34308803,186.17,186.07,45.0]
[1722117125174,1.34308803,186.17,186.06,0.34]
[1722117135666,22.1305,186.16,186.05,45.0]
[1722117135973,1.34333154,186.15,186.05,45.0]
[1722117136584,22.1305,186.16,186.05,45.0]
[1722117137283,1.34328405,186.15,186.05,45.0]
[1722117137484,1.34333075,186.14,186.05,45.0]
[1722117137683,22.1305,186.16,186.05,45.0]
[1722117138202,1.34329266,186.15,186.05,45.0]
[1722117138372,1.34329231,186.14,186.01,3.24631762]
[1722117138574,1.34329231,186.14,186.01,23.24631762]
[1722117138877,1.34329231,186.14,186.02,5.56851501]
[1722117139078,1.34329231,186.14,186.03,20.0]
[1722117139488,22.1305,186.16,186.03,20.0]
[1722117139786,22.1305,186.16,186.04,45.0]
[1722117140292,22.1305,186.16,186.05,0.34]
[1722117151404,6.4541,186.11,186.03,5.56650205]
[1722117151702,6.4541,186.0,185.86,15.5707]
[1722117151900,6.4541,186.0,185.84,0.8079]
[1722117151901,5.81585948,185.99,185.87,7.146019]
[1722117152105,1.34469585,185.98,185.84,0.8079]
[1722117154608,11.3139,185.9,185.67,280.7]
[1722117154914,11.3139,185.9,185.72,2.13406608]
[1722117154915,8.13944272,185.89,185.72,2.13406608]
[1722117155093,75.70944272,185.89,185.72,2.13406608]
[1722117155293,75.70944272,185.89,185.72,3.2104307]
[1722117155502,29.0241,185.89,185.72,3.2104307]
[1722117155704,30.36944815,185.89,185.72,1.07636462]
[1722117156414,6.4541,185.89,185.72,32.80692145]
[1722117156708,6.4541,185.89,185.78,1.07606699]
[1722117157616,6.4541,185.89,185.79,0.34]
[1722117157805,6.4541,185.89,185.8,1.07588043]
[1722117157985,6.4541,185.89,185.81,0.34]
[1722117158185,6.4541,185.89,185.81,1.41588359]
[1722117158426,6.4541,185.94,185.81,1.41588359]
[1722117158798,6.4541,185.94,185.81,66.41588359]
[1722117159621,6.4541,185.94,185.81,88.98588359]
[1722117161435,6.4541,185.94,185.81,105.14588359]
[1722117162598,6.4541,185.94,185.82,58.3434]
[1722117162801,6.4541,185.94,185.83,66.41552904]
[1722117163217,6.4541,185.94,185.84,5.56622238]
[1722117163419,6.4541,185.94,185.85,66.41552822]
[1722117163599,6.4541,185.94,185.86,1.07553179]
[1722117163926,6.4541,185.94,185.87,0.34]
[1722117164593,6.4541,185.94,185.88,1.07555016]
[1722117164795,6.4541,185.94,185.89,0.34]
[1722117165524,4.3001,186.05,185.89,0.34]
[1722117165525,6.4541,185.98,185.9,1.07551231]
[1722117165831,6.4541,185.98,185.91,0.34]
[1722117166518,6.4541,185.98,185.92,1.07538817]
[1722117167220,6.4541,185.98,185.91,0.34]
[1722117176405,15.1029,185.99,185.91,0.34]
[1722117178533,1.34422698,185.98,185.85,25.56405565]
[1722117179024,1.34422698,185.98,185.85,26.63959479]
[1722117179224,1.34422698,185.98,185.86,1.07553914]
[1722117179439,1.34422698,185.98,185.85,27.7955453]
[1722117179928,1.34422698,185.98,185.86,45.34]
[1722117180525,1.34422698,185.98,185.85,5.56405565]
[1722117181216,6.6371,185.97,185.85,5.56405565]
[1722117181415,1.34482903,185.96,185.82,15.5707]
[1722117181616,1.34483175,185.95,185.82,15.5707]
[1722117182130,1.34483175,185.95,185.8,5.56513187]
[1722117182432,15.3199,185.93,185.81,1.07597927]
[1722117182646,15.3199,185.93,185.8,6.64111114]
[1722117182811,1.34487792,185.92,185.8,5.56513187]
[1722117183314,15.3199,185.93,185.81,1.07585208]
[1722117183535,15.3199,185.93,185.81,20.0]
[1722117183536,1.34482828,185.92,185.81,20.0]
[1722117183712,1.34483061,185.92,185.81,20.0]
[1722117184138,15.3199,185.93,185.81,20.0]
[1722117184335,15.3199,185.93,185.82,45.34]
[1722117184637,1.34485904,185.92,185.83,20.0]
[1722117184835,1.34485904,185.92,185.84,45.0]
[1722117185437,15.3199,185.93,185.84,45.0]
[1722117189244,1.34486074,185.92,185.84,45.0]
[1722117191528,15.3199,185.93,185.84,45.0]
[1722117192044,1.3448475,185.92,185.84,45.0]
[1722117193322,15.3199,185.93,185.84,45.0]
[1722117193523,1.34486419,185.92,185.84,45.0]
[1722117193728,6.2165,185.91,185.77,0.8088155]
[1722117193919,16.3051,185.89,185.77,0.8088155]
[1722117194148,1.34527033,185.88,185.77,0.8088155]
[1722117196459,17.65033764,185.89,185.78,0.34]
[1722117196828,17.65033764,185.89,185.77,0.8088155]
[1722117199061,17.65033764,185.89,185.77,20.8088155]
[1722117199243,17.65033764,185.89,185.78,45.0]
[1722117199854,17.65033764,185.89,185.77,20.8088155]
[1722117200068,0.34,185.88,185.77,0.8088155]
[1722117200355,1.34549178,185.87,185.77,0.8088155]
[1722117200533,1.34549178,185.87,185.77,20.8088155]
[1722117200740,17.65047728,185.89,185.78,45.0]
[1722117204043,16.3051,185.89,185.78,45.0]
[1722117204238,16.3051,185.89,185.79,0.34]
[1722117204461,16.3051,185.89,185.78,45.0]
[1722117204971,16.3051,185.89,185.79,0.34]
[1722117205272,16.3051,185.89,185.78,45.0]
[1722117207154,16.3051,185.89,185.79,0.17]
[1722117207465,16.3051,185.89,185.79,21.41605026]
[1722117207665,16.3051,185.89,185.8,45.0]
[1722117207872,16.3051,185.89,185.81,0.34]
[1722117208044,16.3051,185.89,185.81,20.34]
[1722117208244,16.3051,185.89,185.82,45.0]
[1722117210053,16.3051,185.89,185.83,0.17]
[1722117210254,16.3051,185.89,185.82,45.0]
[1722117211978,16.3051,185.89,185.83,0.34]
[1722117212277,16.3051,185.89,185.82,45.0]
[1722117213666,6.2165,185.91,185.83,20.34]
[1722117213866,6.2165,185.91,185.84,45.0]
[1722117214164,15.5043,185.93,185.85,0.17]
[1722117214469,15.5043,185.93,185.84,45.0]
[1722117214968,15.5043,185.93,185.85,0.34]
[1722117215269,15.5043,185.93,185.85,20.34]
[1722117215448,15.5043,185.98,185.86,46.07564061]
[1722117215650,15.5043,185.98,185.87,20.0]
[1722117215951,15.5043,185.98,185.88,46.41547256]
[1722117216154,15.5043,185.98,185.89,20.0]
[1722117216461,15.5043,185.98,185.9,45.17]
[1722117216846,6.5085,185.99,185.9,46.24547574]
[1722117217058,15.5043,186.02,185.9,46.24547574]
[1722117217258,15.5043,186.02,185.91,0.17]
[1722117218765,15.5043,186.02,185.91,1.24538984]
[1722117218958,15.5043,186.02,185.92,0.17]
[1722117219462,23.35702466,186.02,185.91,0.34]
[1722117219773,22.0128,186.05,185.92,1.07528612]
[1722117220076,22.0128,186.05,185.93,1.41522752]
[1722117220973,22.0128,186.05,185.93,21.41522752]
[1722117221170,22.0128,186.05,185.94,45.0]
[1722117221472,22.0128,186.05,185.95,0.34]
[1722117223970,22.0128,186.1,185.96,1.07506964]
[1722117224170,22.0128,186.1,185.97,0.34]
[1722117224375,22.0128,186.1,185.98,1.07493338]
[1722117224577,22.0128,186.1,185.99,1.41493114]
[1722117224976,22.0128,186.1,185.99,21.41493114]
[1722117225288,22.0128,186.1,186.0,45.0]
[1722117226163,15.5043,186.1,186.0,45.0]
[1722117228770,1.34366392,186.14,186.01,21.5709]
[1722117229076,4.2962,186.21,186.04,22.57]
[1722117229263,1.34315838,186.2,186.05,21.4145267]
[1722117229469,1.34313476,186.22,186.05,66.4145267]
[1722117229694,23.35593476,186.23,186.05,66.4145267]
[1722117229987,22.0128,186.23,186.06,15.1369]
[1722117230185,22.0128,186.23,186.07,66.41432577]
[1722117230368,22.0128,186.23,186.08,1.07430363]
[1722117230572,22.0128,186.23,186.09,6.744]
[1722117230773,22.0128,186.23,186.1,66.07431964]